bitfinex/quotes_BTCUSD_20230906
["timestamp","ask_amount","ask_price","bid_price","bid_amount"]
[1693970512890,0.67879729,25843.0,25842.0,2.321778]
[1693970513049,0.68017729,25843.0,25842.0,2.321778]
[1693970513253,0.68029729,25843.0,25842.0,2.321778]
[1693970513455,0.67999729,25843.0,25842.0,2.321778]
[1693970513661,0.67945729,25843.0,25842.0,2.321778]
[1693970513858,0.67903729,25843.0,25842.0,2.321778]
[1693970514067,0.67879729,25843.0,25842.0,2.321778]
[1693970514309,0.67867729,25843.0,25842.0,2.321778]
[1693970514519,0.67891729,25843.0,25842.0,2.321778]
[1693970514733,0.67867729,25843.0,25842.0,2.321778]
[1693970514898,0.67849729,25843.0,25842.0,2.321778]
[1693970515102,0.67837729,25843.0,25842.0,2.321778]
[1693970515304,0.67723729,25843.0,25842.0,2.321778]
[1693970515503,0.67669729,25843.0,25842.0,2.321778]
[1693970515749,0.67657729,25843.0,25842.0,2.321778]
[1693970515950,0.67363729,25843.0,25842.0,2.321778]
[1693970516123,0.67327729,25843.0,25842.0,2.321778]
[1693970516352,0.67297729,25843.0,25842.0,2.321778]
[1693970516567,0.67225729,25843.0,25842.0,2.321778]
[1693970516739,0.67201729,25843.0,25842.0,2.321778]
[1693970516939,0.67219729,25843.0,25842.0,2.321778]
[1693970517141,0.67267729,25843.0,25842.0,2.321778]
[1693970517397,0.67273729,25843.0,25842.0,2.321778]
[1693970517800,0.67207729,25843.0,25842.0,2.321778]
[1693970518026,0.67045729,25843.0,25842.0,2.321778]
[1693970518206,0.67009729,25843.0,25842.0,2.321778]
[1693970518418,0.67069729,25843.0,25842.0,2.442278]
[1693970518630,0.66883729,25843.0,25842.0,2.442278]
[1693970518975,0.66865729,25843.0,25842.0,2.442278]
[1693970519175,0.67033729,25843.0,25842.0,2.442278]
[1693970519378,0.66961729,25843.0,25842.0,2.442278]
[1693970519620,0.66967729,25843.0,25842.0,2.442278]
[1693970519822,0.66841729,25843.0,25842.0,2.442278]
[1693970520041,0.4927673,25843.0,25842.0,2.442278]
[1693970520244,0.4727673,25843.0,25842.0,2.442278]
[1693970521505,0.4727673,25843.0,25842.0,2.58178239]
[1693970523691,0.48065227,25843.0,25842.0,2.58178239]
[1693970525658,0.44253024,25843.0,25842.0,2.58178239]
[1693970536388,0.44253024,25843.0,25842.0,2.442278]
[1693970538353,0.44253024,25843.0,25842.0,3.216211]
[1693970539359,0.43464527,25843.0,25842.0,3.216211]
[1693970540722,0.43464527,25843.0,25842.0,3.27591598]
[1693970540920,0.43464527,25843.0,25842.0,3.57591598]
[1693970541345,0.41064527,25843.0,25842.0,3.57591598]
[1693970541981,0.43464527,25843.0,25842.0,3.57591598]
[1693970542180,0.41064527,25843.0,25842.0,3.57591598]
[1693970542993,0.43464527,25843.0,25842.0,3.57591598]
[1693970544181,0.43464527,25843.0,25842.0,3.516211]
[1693970544405,0.43464527,25843.0,25842.0,2.742278]
[1693970544589,0.44219581,25843.0,25842.0,2.742278]
[1693970559596,0.43464527,25843.0,25842.0,2.742278]
[1693970559967,0.44182642,25843.0,25842.0,2.742278]
[1693970565510,0.43464527,25843.0,25842.0,2.742278]
[1693970566519,0.44165966,25843.0,25842.0,2.742278]
[1693970568304,0.44165966,25843.0,25842.0,2.86555229]
[1693970568661,0.43464527,25843.0,25842.0,2.86555229]
[1693970571704,0.048,25843.0,25842.0,2.86555229]
[1693970572179,0.048,25843.0,25842.0,2.88743026]
[1693970572384,0.048,25843.0,25842.0,4.09557685]
[1693970574404,0.024,25843.0,25842.0,4.09557685]
[1693970574880,0.048,25843.0,25842.0,4.09557685]
[1693970575091,0.024,25843.0,25842.0,4.09557685]
[1693970575277,0.024,25843.0,25842.0,2.98014506]
[1693970575426,0.15485,25846.0,25842.0,4.09554022]
[1693970575634,0.38664527,25845.0,25843.0,0.3]
[1693970575845,0.38664527,25845.0,25844.0,3.98987]
[1693970577405,0.43464527,25845.0,25844.0,3.98987]
[1693970577761,0.4414256,25845.0,25844.0,3.98987]
[1693970580553,0.5148656,25845.0,25844.0,3.215996]
[1693970580763,0.61114671,25845.0,25844.0,3.215996]
[1693970580964,0.61216671,25845.0,25844.0,3.215996]
[1693970581165,0.61186671,25845.0,25844.0,3.215996]
[1693970581390,0.61132671,25845.0,25844.0,3.215996]
[1693970581595,0.5168456,25845.0,25844.0,3.215996]
[1693970581723,0.5289056,25845.0,25844.0,3.215996]
[1693970581930,0.5370656,25845.0,25844.0,3.215996]
[1693970582151,0.5365856,25845.0,25844.0,3.215996]
[1693970582330,0.5360456,25845.0,25844.0,3.215996]
[1693970582531,0.5341856,25845.0,25844.0,3.215996]
[1693970582730,0.5340056,25845.0,25844.0,3.215996]
[1693970582932,0.5394656,25845.0,25844.0,3.215996]
[1693970583133,0.5400656,25845.0,25844.0,3.215996]
[1693970583359,0.5415656,25845.0,25844.0,3.215996]
[1693970583615,0.5430656,25845.0,25844.0,3.215996]
[1693970583813,0.5625856,25845.0,25844.0,3.215996]
[1693970584045,0.5622856,25845.0,25844.0,3.215996]
[1693970584221,0.56693612,25845.0,25844.0,3.215996]
[1693970584491,0.56657612,25845.0,25844.0,3.215996]
[1693970584673,0.56609612,25845.0,25844.0,3.215996]
[1693970584846,0.55565612,25845.0,25844.0,3.215996]
[1693970585072,0.55463612,25845.0,25844.0,3.215996]
[1693970585277,0.55295612,25845.0,25844.0,3.215996]
[1693970585500,0.55265612,25845.0,25844.0,3.215996]
[1693970585639,0.55235612,25845.0,25844.0,3.215996]
[1693970585847,0.55211612,25845.0,25844.0,3.215996]
[1693970586241,0.55187612,25845.0,25844.0,3.215996]
[1693970586484,0.55139612,25845.0,25844.0,3.215996]
[1693970586687,0.55049612,25845.0,25844.0,3.215996]
[1693970586909,0.55085612,25845.0,25844.0,3.215996]
[1693970587114,0.54641612,25845.0,25844.0,3.215996]
[1693970587429,0.54323612,25845.0,25844.0,3.215996]
[1693970587554,0.54311612,25845.0,25844.0,3.215996]
[1693970587755,0.54305612,25845.0,25844.0,3.2472851]
[1693970587960,0.54257612,25845.0,25844.0,3.2472851]
[1693970588265,0.54245612,25845.0,25844.0,3.2472851]
[1693970588469,0.54203612,25845.0,25844.0,3.2472851]
[1693970588704,0.54185612,25845.0,25844.0,3.2472851]
[1693970588908,0.54113612,25845.0,25844.0,3.2472851]
[1693970589310,0.54101612,25845.0,25844.0,3.2472851]
[1693970589484,0.54083612,25845.0,25844.0,3.2472851]
[1693970589697,0.54071612,25845.0,25844.0,3.2472851]
[1693970590044,0.54029612,25845.0,25844.0,3.2472851]
[1693970590245,0.54017612,25845.0,25844.0,3.2472851]
[1693970590466,0.54047612,25845.0,25844.0,3.2472851]
[1693970590670,0.54077612,25845.0,25844.0,3.2472851]
[1693970590874,0.54041612,25845.0,25844.0,3.2472851]
[1693970591050,0.54035612,25845.0,25844.0,3.2472851]
[1693970591279,0.54011612,25845.0,25844.0,3.2472851]
[1693970591480,0.53999612,25845.0,25844.0,3.2472851]
[1693970591660,0.53993612,25845.0,25844.0,3.2472851]
[1693970591794,0.53969612,25845.0,25844.0,3.2472851]
[1693970592009,0.53945612,25845.0,25844.0,3.215996]
[1693970592223,0.55493612,25845.0,25844.0,3.215996]
[1693970592423,0.55535612,25845.0,25844.0,3.215996]
[1693970592621,0.55469612,25845.0,25844.0,3.215996]
[1693970592821,0.55451612,25845.0,25844.0,3.215996]
[1693970593088,0.55445612,25845.0,25844.0,3.215996]
[1693970593259,0.55421612,25845.0,25844.0,3.215996]
[1693970593460,0.55427612,25845.0,25844.0,3.215996]
[1693970593657,0.55349612,25845.0,25844.0,3.215996]
[1693970593923,0.55397612,25845.0,25844.0,3.215996]
[1693970594127,0.55355612,25845.0,25844.0,3.215996]
[1693970594329,0.55283612,25845.0,25844.0,3.215996]
[1693970594543,0.55217612,25845.0,25844.0,3.215996]
[1693970594725,0.55187612,25845.0,25844.0,3.215996]
[1693970594923,0.55181612,25845.0,25844.0,3.215996]
[1693970595153,0.55187612,25845.0,25844.0,3.215996]
[1693970595359,0.55151612,25845.0,25844.0,3.215996]
[1693970595536,0.55121612,25845.0,25844.0,3.215996]
[1693970595745,0.55103612,25845.0,25844.0,3.215996]
[1693970595953,0.55085612,25845.0,25844.0,3.215996]
[1693970596109,0.55067612,25845.0,25844.0,3.215996]
[1693970596332,0.55103612,25845.0,25844.0,3.215996]
[1693970596543,0.55055612,25845.0,25844.0,3.215996]
[1693970596906,0.55007612,25845.0,25844.0,3.215996]
[1693970597180,0.54995612,25845.0,25844.0,3.215996]
[1693970597387,0.54953612,25845.0,25844.0,3.215996]
[1693970597619,0.66833383,25845.0,25844.0,3.215996]
[1693970597820,0.66131383,25845.0,25844.0,3.215996]
[1693970597958,0.66113383,25845.0,25844.0,3.215996]
[1693970598354,0.66089383,25845.0,25844.0,3.215996]
[1693970598556,0.66059383,25845.0,25844.0,3.215996]
[1693970598819,0.66281383,25845.0,25844.0,3.215996]
[1693970599028,0.66233383,25845.0,25844.0,3.215996]
[1693970599220,0.54797612,25845.0,25844.0,3.215996]
[1693970599422,0.55655612,25845.0,25844.0,3.215996]
[1693970599645,0.55637612,25845.0,25844.0,3.215996]
[1693970599851,0.57209612,25845.0,25844.0,1.668248]
[1693970600066,0.70513383,25845.0,25844.0,1.668248]
[1693970600271,0.74547586,25845.0,25844.0,0.1205]
[1693970600475,0.74745586,25845.0,25844.0,0.894374]
[1693970600682,0.74751586,25845.0,25844.0,0.894374]
[1693970600891,0.74751586,25845.0,25844.0,1.668248]
[1693970600892,0.75201586,25845.0,25844.0,1.668248]
[1693970601064,0.74949586,25845.0,25844.0,0.894374]
[1693970601277,0.74859586,25845.0,25844.0,0.894374]
[1693970601487,0.74913586,25845.0,25844.0,0.894374]
[1693970601690,0.74865586,25845.0,25844.0,0.894374]
[1693970601848,0.74673586,25845.0,25844.0,1.668248]
[1693970602057,0.74631586,25845.0,25844.0,1.668248]
[1693970602367,0.75231586,25845.0,25844.0,0.894374]
[1693970602738,0.75111586,25845.0,25844.0,0.894374]
[1693970602917,0.75123586,25845.0,25844.0,0.894374]
[1693970603269,0.75093586,25845.0,25844.0,0.894374]
[1693970603494,0.75087586,25845.0,25844.0,0.894374]
[1693970603694,0.75045586,25845.0,25844.0,0.894374]
[1693970603903,0.74913586,25845.0,25844.0,0.894374]
[1693970604107,0.74889586,25845.0,25844.0,0.894374]
[1693970604328,0.75039586,25845.0,25844.0,0.894374]
[1693970604542,0.77051586,25845.0,25844.0,0.894374]
[1693970604746,0.05812203,25844.0,25843.0,0.773884]
[1693970604945,0.58052124,25844.0,25843.0,0.773884]
[1693970605194,0.70529365,25844.0,25843.0,0.773884]
[1693970605349,0.70271365,25844.0,25843.0,0.773884]
[1693970605526,0.70241365,25844.0,25843.0,1.547787]
[1693970605727,0.69461365,25844.0,25843.0,1.547787]
[1693970605932,0.71825365,25844.0,25843.0,1.547787]
[1693970606133,0.71789365,25844.0,25843.0,1.547787]
[1693970606337,0.71687365,25844.0,25843.0,1.547787]
[1693970606534,0.71747365,25844.0,25843.0,1.547787]
[1693970606735,0.71765365,25844.0,25843.0,1.547787]
[1693970606942,0.71741365,25844.0,25843.0,1.547787]
[1693970607144,0.71567365,25844.0,25843.0,1.547787]
[1693970607354,0.71669365,25844.0,25843.0,1.547787]
[1693970607581,0.71687365,25844.0,25843.0,1.547787]
[1693970607733,0.71735365,25844.0,25843.0,1.547787]
[1693970607935,0.71729365,25844.0,25843.0,1.547787]
[1693970608248,0.74129365,25844.0,25843.0,1.547787]
[1693970608818,0.73991365,25844.0,25843.0,1.547787]
[1693970608935,0.71447365,25844.0,25843.0,1.547787]
[1693970609142,0.73835365,25844.0,25843.0,1.547787]
[1693970609340,0.71423365,25844.0,25843.0,1.547787]
[1693970609542,0.73775365,25844.0,25843.0,1.547787]
[1693970609751,0.73931365,25844.0,25843.0,1.547787]
[1693970609957,0.74039365,25844.0,25843.0,1.547787]
[1693970610159,0.74033365,25844.0,25843.0,1.547787]
[1693970610402,0.73997365,25844.0,25843.0,1.547787]
[1693970610602,0.74015365,25844.0,25843.0,1.547787]
[1693970610799,0.73997365,25844.0,25843.0,1.547787]
[1693970611121,0.74297365,25844.0,25843.0,1.547787]
[1693970611494,0.74009365,25844.0,25843.0,1.547787]
[1693970611706,0.73943365,25844.0,25843.0,1.547787]
[1693970611878,0.73913365,25844.0,25843.0,1.547787]
[1693970612282,0.74219365,25844.0,25843.0,1.547787]
[1693970612465,0.73823365,25844.0,25843.0,1.547787]
[1693970612662,0.73853365,25844.0,25843.0,1.547787]
[1693970612863,0.73859365,25844.0,25843.0,1.547787]
[1693970613252,0.73853365,25844.0,25843.0,1.547787]
[1693970613838,0.73823365,25844.0,25843.0,1.547787]
[1693970614060,0.73829365,25844.0,25843.0,1.547787]
[1693970614206,0.73853365,25844.0,25843.0,1.547787]
[1693970614620,0.73757365,25844.0,25843.0,1.547787]
[1693970615047,0.73751365,25844.0,25843.0,1.547787]
[1693970615281,0.73805365,25844.0,25843.0,1.547787]
[1693970615478,0.73757365,25844.0,25843.0,1.547787]
[1693970615730,0.73745365,25844.0,25843.0,1.547787]
[1693970616137,0.74039365,25844.0,25843.0,1.547787]
[1693970616351,0.73799365,25844.0,25843.0,1.547787]
[1693970616540,0.74609365,25844.0,25843.0,1.547787]
[1693970616716,0.74585365,25844.0,25843.0,1.547787]
[1693970616894,0.74507365,25844.0,25843.0,1.547787]
[1693970617098,0.74333365,25844.0,25843.0,1.547787]
[1693970617301,0.74297365,25844.0,25843.0,1.547787]
[1693970617544,0.74459365,25844.0,25843.0,1.547787]
[1693970617746,0.74303365,25844.0,25843.0,1.547787]
[1693970617953,0.74429365,25844.0,25843.0,1.547787]
[1693970618208,0.74453365,25844.0,25843.0,1.547787]
[1693970618402,0.74465365,25844.0,25843.0,1.547787]
[1693970618622,0.74621365,25844.0,25843.0,1.547787]
[1693970618843,0.74555365,25844.0,25843.0,1.547787]
[1693970619085,0.74585365,25844.0,25843.0,1.547787]
[1693970619286,0.74573365,25844.0,25843.0,1.547787]
[1693970619514,0.74483365,25844.0,25843.0,1.547787]
[1693970619634,0.74345365,25844.0,25843.0,1.547787]
[1693970619831,0.74459365,25844.0,25843.0,1.547787]
[1693970620053,0.74321365,25844.0,25843.0,1.547787]
[1693970620469,0.74453365,25844.0,25843.0,1.547787]
[1693970620674,0.74459365,25844.0,25843.0,1.547787]
[1693970621030,0.74435365,25844.0,25843.0,1.547787]
[1693970621366,0.74285365,25844.0,25843.0,1.547787]
[1693970621582,0.74411365,25844.0,25843.0,1.547787]
[1693970621810,0.74213365,25844.0,25843.0,1.547787]
[1693970622235,0.74459365,25844.0,25843.0,1.547787]
[1693970622735,0.74327365,25844.0,25843.0,1.547787]
[1693970622887,0.74321365,25844.0,25843.0,1.547787]
[1693970623088,0.74321365,25844.0,25843.0,1.668287]
[1693970623281,0.83611484,25844.0,25843.0,1.668287]
[1693970623482,0.83653484,25844.0,25843.0,1.668287]
[1693970623692,0.83749484,25844.0,25843.0,1.668287]
[1693970624099,0.83725484,25844.0,25843.0,1.668287]
[1693970624279,0.83719484,25844.0,25843.0,1.668287]
[1693970624479,0.83695484,25844.0,25843.0,1.668287]
[1693970624709,0.83689484,25844.0,25843.0,1.668287]
[1693970624824,0.83647484,25844.0,25843.0,1.668287]
[1693970625044,0.83599484,25844.0,25843.0,1.668287]
[1693970625245,0.83065484,25844.0,25843.0,1.668287]
[1693970625510,0.83167484,25844.0,25843.0,1.668287]
[1693970625708,0.83221484,25844.0,25843.0,1.668287]
[1693970625864,0.83227484,25844.0,25843.0,1.668287]
[1693970626264,0.7144209,25844.0,25843.0,1.668287]
[1693970626465,0.7035009,25844.0,25843.0,1.668287]
[1693970626687,0.7032009,25844.0,25843.0,1.668287]
[1693970627066,0.7032609,25844.0,25843.0,1.668287]
[1693970627276,0.7035009,25844.0,25843.0,1.668287]
[1693970627480,0.7035609,25844.0,25843.0,1.668287]
[1693970627685,0.7061409,25844.0,25843.0,1.668287]
[1693970627932,0.7068609,25844.0,25843.0,1.668287]
[1693970628134,0.7075809,25844.0,25843.0,1.668287]
[1693970628315,0.7077609,25844.0,25843.0,1.668287]
[1693970628454,0.7079409,25844.0,25843.0,1.668287]
[1693970628652,0.7080609,25844.0,25843.0,1.668287]
[1693970628858,0.7081809,25844.0,25843.0,1.668287]
[1693970629070,0.7084209,25844.0,25843.0,1.668287]
[1693970629275,0.7085409,25844.0,25843.0,1.668287]
[1693970629480,0.7081809,25844.0,25843.0,1.668287]
[1693970629687,0.7083009,25844.0,25843.0,1.668287]
[1693970629892,0.7084209,25844.0,25843.0,1.668287]
[1693970630096,0.7087209,25844.0,25843.0,1.668287]
[1693970630322,0.7089609,25844.0,25843.0,1.668287]
[1693970630517,0.7089009,25844.0,25843.0,1.668287]
[1693970630739,0.7090809,25844.0,25843.0,1.668287]
[1693970630939,0.7089009,25844.0,25843.0,1.668287]
[1693970631151,0.7123209,25844.0,25843.0,1.668287]
[1693970631463,0.7126209,25844.0,25843.0,1.668287]
[1693970631673,0.7126809,25844.0,25843.0,1.668287]
[1693970631996,0.7125009,25844.0,25843.0,2.44219]
[1693970632197,0.7116609,25844.0,25843.0,2.44219]
[1693970632399,0.7117809,25844.0,25843.0,2.44219]
[1693970632603,0.85548076,25844.0,25843.0,2.44219]
[1693970632739,0.86118076,25844.0,25843.0,2.44219]
[1693970632936,0.86406076,25844.0,25843.0,2.44219]
[1693970633136,0.86448076,25844.0,25843.0,2.44219]
[1693970633345,0.86454076,25844.0,25843.0,2.44219]
[1693970633551,0.86436076,25844.0,25843.0,2.44219]
[1693970633750,0.86424076,25844.0,25843.0,2.44219]
[1693970634454,0.86430076,25844.0,25843.0,2.44219]
[1693970634660,0.86382076,25844.0,25843.0,2.44219]
[1693970634863,0.86292076,25844.0,25843.0,2.44219]
[1693970634998,0.86772076,25844.0,25843.0,2.44219]
[1693970635203,0.86652076,25844.0,25843.0,2.32169]
[1693970635407,0.86376076,25844.0,25843.0,2.32169]
[1693970635621,0.86346076,25844.0,25843.0,2.32169]
[1693970635991,0.86268076,25844.0,25843.0,2.32169]
[1693970636188,0.86358076,25844.0,25843.0,1.547787]
[1693970636389,0.86364076,25844.0,25843.0,1.547787]
[1693970636591,0.86334076,25844.0,25843.0,1.547787]
[1693970636982,0.86310076,25844.0,25843.0,1.547787]
[1693970637155,0.86274076,25844.0,25843.0,1.547787]
[1693970637555,0.86196076,25844.0,25843.0,1.547787]
[1693970637726,0.86256076,25844.0,25843.0,1.547787]
[1693970637929,0.86238076,25844.0,25843.0,1.547787]
[1693970638134,0.86190076,25844.0,25843.0,1.547787]
[1693970638380,0.85818076,25844.0,25843.0,1.547787]
[1693970638586,0.85806076,25844.0,25843.0,1.547787]
[1693970638789,0.85740076,25844.0,25843.0,1.547787]
[1693970638966,0.85734076,25844.0,25843.0,1.547787]
[1693970639195,0.84894076,25844.0,25843.0,1.547787]
[1693970639418,0.85092076,25844.0,25843.0,1.547787]
[1693970639621,0.85350076,25844.0,25843.0,1.547787]
[1693970639827,0.85332076,25844.0,25843.0,1.547787]
[1693970640033,0.85314076,25844.0,25843.0,1.547787]
[1693970640312,0.85410076,25844.0,25843.0,1.547787]
[1693970640510,0.85302076,25844.0,25843.0,1.547787]
[1693970640720,0.85296076,25844.0,25843.0,1.547787]
[1693970640952,0.85236076,25844.0,25843.0,1.547787]
[1693970641095,0.85248076,25844.0,25843.0,1.547787]
[1693970641318,0.85224076,25844.0,25843.0,1.547787]
[1693970641512,0.85200076,25844.0,25843.0,2.32169]
[1693970641718,0.85104076,25844.0,25843.0,2.32169]
[1693970641925,0.85128076,25844.0,25843.0,1.547787]
[1693970642122,0.85200076,25844.0,25843.0,1.547787]
[1693970642496,0.85212076,25844.0,25843.0,1.547787]
[1693970642695,0.85224076,25844.0,25843.0,1.547787]
[1693970643016,0.85254076,25844.0,25843.0,1.547787]
[1693970643224,0.85278076,25844.0,25843.0,1.668287]
[1693970643429,0.85296076,25844.0,25843.0,1.668287]
[1693970643630,0.85692076,25844.0,25843.0,1.668287]
[1693970643833,0.86061122,25844.0,25843.0,1.668287]
[1693970644048,0.86067122,25844.0,25843.0,1.668287]
[1693970644470,0.86223122,25844.0,25843.0,1.668287]
[1693970644674,0.86373122,25844.0,25843.0,1.668287]
[1693970644889,0.86319122,25844.0,25843.0,1.668287]
[1693970645106,0.86325122,25844.0,25843.0,1.668287]
[1693970645311,0.86355122,25844.0,25843.0,1.668287]
[1693970645441,0.86553122,25844.0,25843.0,1.668287]
[1693970645644,0.87093122,25844.0,25843.0,1.668287]
[1693970645851,0.86991122,25844.0,25843.0,1.668287]
[1693970646071,0.86841122,25844.0,25843.0,1.668287]
[1693970646225,0.86853122,25844.0,25843.0,1.668287]
[1693970646436,0.86445122,25844.0,25843.0,1.668287]
[1693970646639,0.86361122,25844.0,25843.0,1.668287]
[1693970646866,0.86409122,25844.0,25843.0,1.668287]
[1693970647079,0.86373122,25844.0,25843.0,1.668287]
[1693970647295,0.86421122,25844.0,25843.0,1.668287]
[1693970647498,0.86655122,25844.0,25843.0,1.668287]
[1693970647697,0.86697122,25844.0,25843.0,1.668287]
[1693970647898,0.86571122,25844.0,25843.0,1.668287]
[1693970648235,0.87051122,25844.0,25843.0,0.894384]
[1693970648374,0.87411122,25844.0,25843.0,0.894384]
[1693970648580,0.87327122,25844.0,25843.0,0.894384]
[1693970648774,0.87375122,25844.0,25843.0,0.894384]
[1693970648991,0.87315122,25844.0,25843.0,0.894384]
[1693970649196,0.87297122,25844.0,25843.0,0.894384]
[1693970649406,0.87321122,25844.0,25843.0,0.894384]
[1693970649615,1.01176353,25844.0,25843.0,0.894384]
[1693970649814,1.01116353,25844.0,25843.0,0.894384]
[1693970650011,1.01104353,25844.0,25843.0,0.894384]
[1693970650369,1.01680353,25844.0,25843.0,0.894384]
[1693970650565,1.01362353,25844.0,25843.0,0.894384]
[1693970650770,1.01122353,25844.0,25843.0,0.894384]
[1693970650972,1.01020353,25844.0,25843.0,0.894384]
[1693970651110,1.00972353,25844.0,25843.0,0.894384]
[1693970651469,1.01002353,25844.0,25843.0,0.894384]
[1693970651668,1.01014353,25844.0,25843.0,0.894384]
[1693970651874,1.01056353,25844.0,25843.0,0.894384]
[1693970652201,1.00942353,25844.0,25843.0,0.894384]
[1693970652399,1.00912353,25844.0,25843.0,0.894384]
[1693970652520,1.00888353,25844.0,25843.0,0.894384]
[1693970652734,1.00840353,25844.0,25843.0,0.894384]
[1693970652943,1.00834353,25844.0,25843.0,0.894384]
[1693970653180,1.00792353,25844.0,25843.0,0.894384]
[1693970653381,1.00774353,25844.0,25843.0,0.894384]
[1693970653575,1.00852353,25844.0,25843.0,0.894384]
[1693970653828,1.00828353,25844.0,25843.0,0.894384]
[1693970654140,1.00948353,25844.0,25843.0,0.894384]
[1693970654347,1.01068353,25844.0,25843.0,0.894384]
[1693970654554,1.01050353,25844.0,25843.0,0.894384]
[1693970654758,1.01032353,25844.0,25843.0,0.894384]
[1693970654959,1.01008353,25844.0,25843.0,0.894384]
[1693970655234,1.00978353,25844.0,25843.0,0.894384]
[1693970655436,1.00936353,25844.0,25843.0,0.894384]
[1693970655590,1.00756353,25844.0,25843.0,0.894384]
[1693970655797,1.00768353,25844.0,25843.0,0.894384]
[1693970655997,1.00756353,25844.0,25843.0,0.894384]
[1693970656193,1.00606353,25844.0,25843.0,0.894384]
[1693970656429,1.00630353,25844.0,25843.0,0.1205]
[1693970656627,1.01482353,25844.0,25843.0,0.894403]
[1693970656957,1.01488353,25844.0,25843.0,0.894403]
[1693970657163,1.01464353,25844.0,25843.0,0.894403]
[1693970657363,1.01434353,25844.0,25843.0,0.894403]
[1693970657569,1.01416353,25844.0,25843.0,0.894403]
[1693970657711,1.01392353,25844.0,25843.0,0.894403]
[1693970657910,1.01350353,25844.0,25843.0,0.894403]
[1693970658228,1.01248353,25844.0,25843.0,0.894403]
[1693970658576,1.01218353,25844.0,25843.0,0.894403]
[1693970658777,1.01194353,25844.0,25843.0,0.894403]
[1693970658994,1.01182353,25844.0,25843.0,0.894403]
[1693970659156,1.01068353,25844.0,25843.0,0.894403]
[1693970659370,1.01164353,25844.0,25843.0,0.894403]
[1693970659586,1.01140353,25844.0,25843.0,0.894403]
[1693970659885,1.01104353,25844.0,25843.0,0.894403]
[1693970660089,1.01092353,25844.0,25843.0,0.894403]
[1693970660311,1.01080353,25844.0,25843.0,0.894403]
[1693970660510,1.17490353,25844.0,25843.0,0.1205]
[1693970660737,0.03812203,25841.0,25840.0,2.029149]
[1693970661058,0.03812203,25841.0,25840.0,1.668449]
[1693970661059,0.4447673,25841.0,25840.0,1.668449]
[1693970661260,0.69768714,25841.0,25840.0,1.668449]
[1693970661478,0.69558714,25841.0,25840.0,1.668449]
[1693970661657,0.70038714,25841.0,25840.0,1.668449]
[1693970661866,0.70068714,25841.0,25840.0,1.668449]
[1693970662039,0.69630714,25841.0,25840.0,1.668449]
[1693970662246,0.69474714,25841.0,25840.0,1.668449]
[1693970662450,0.69324714,25841.0,25840.0,1.668449]
[1693970662647,0.71676714,25841.0,25840.0,1.668449]
[1693970662826,0.71580714,25841.0,25840.0,1.668449]
[1693970663014,0.71574714,25841.0,25840.0,1.668449]
[1693970663214,0.69186714,25841.0,25840.0,1.668449]
[1693970663434,0.71604714,25841.0,25840.0,1.668449]
[1693970663607,0.71580714,25841.0,25840.0,1.668449]
[1693970663998,0.73986714,25841.0,25840.0,1.668449]
[1693970664178,0.73992714,25841.0,25840.0,1.668449]
[1693970664413,0.73134714,25841.0,25840.0,1.668449]
[1693970664618,0.73212714,25841.0,25840.0,1.668449]
[1693970664821,0.73266714,25841.0,25840.0,1.668449]
[1693970665003,0.73296714,25841.0,25840.0,1.668449]
[1693970665203,0.73254714,25841.0,25840.0,1.668449]
[1693970665406,0.73236714,25841.0,25840.0,1.668449]
[1693970665607,0.5998064,25841.0,25840.0,0.894469]
[1693970665915,0.6002864,25841.0,25840.0,0.894469]
[1693970666127,0.6005864,25841.0,25840.0,0.894469]
[1693970666279,0.6005264,25841.0,25840.0,0.894469]
[1693970666486,0.6004064,25841.0,25840.0,0.894469]
[1693970666692,0.6002864,25841.0,25840.0,0.894469]
[1693970667030,0.84001798,25841.0,25840.0,0.894469]
[1693970667208,0.83923798,25841.0,25840.0,0.894469]
[1693970667407,0.84055798,25841.0,25840.0,0.894469]
[1693970667609,0.83941798,25841.0,25840.0,0.894469]
[1693970667811,0.83977798,25841.0,25840.0,0.894469]
[1693970668030,0.83917798,25841.0,25840.0,0.894469]
[1693970668203,0.5939864,25841.0,25840.0,0.894469]
[1693970668403,0.5920664,25841.0,25840.0,1.668462]
[1693970668707,0.5083064,25841.0,25840.0,2.442455]
[1693970669035,0.6180664,25841.0,25840.0,1.668462]
[1693970669357,0.6119464,25841.0,25840.0,1.668462]
[1693970669558,0.6094264,25841.0,25840.0,1.668462]
[1693970669777,0.76540078,25841.0,25840.0,1.668462]
[1693970669987,0.6024664,25841.0,25840.0,1.668462]
[1693970670185,0.6022864,25841.0,25840.0,1.668462]
[1693970670398,0.6024064,25841.0,25840.0,1.668462]
[1693970670604,0.6023464,25841.0,25840.0,1.668462]
[1693970670815,0.6022264,25841.0,25840.0,1.668462]
[1693970671028,0.6058264,25841.0,25840.0,1.668462]
[1693970671242,0.68998968,25841.0,25840.0,1.668462]
[1693970671454,0.69040968,25841.0,25840.0,1.668462]
[1693970671793,0.68830968,25841.0,25840.0,1.668462]
[1693970672058,0.68902968,25841.0,25840.0,1.668462]
[1693970672261,0.68932968,25841.0,25840.0,1.668462]
[1693970672418,0.68938968,25841.0,25840.0,1.668462]
[1693970672620,0.68740968,25841.0,25840.0,1.668462]
[1693970672982,0.68758968,25841.0,25840.0,1.668462]
[1693970673237,0.68794968,25841.0,25840.0,1.668462]
[1693970673422,0.68842968,25841.0,25840.0,1.668462]
[1693970673591,0.69934968,25841.0,25840.0,1.668462]
[1693970673807,0.69922968,25841.0,25840.0,1.668462]
[1693970674007,0.69796968,25841.0,25840.0,1.668462]
[1693970674834,0.69790968,25841.0,25840.0,1.668462]
[1693970675009,0.69772968,25841.0,25840.0,1.668462]
[1693970675388,0.69706968,25841.0,25840.0,1.668462]
[1693970675573,0.69712968,25841.0,25840.0,1.668462]
[1693970675724,0.69724968,25841.0,25840.0,1.668462]
[1693970675931,0.69982968,25841.0,25840.0,1.668462]
[1693970676135,0.69904968,25841.0,25840.0,1.668462]
[1693970676337,0.69736968,25841.0,25840.0,1.668462]
[1693970676569,0.69622968,25841.0,25840.0,1.668462]
[1693970676971,0.69640968,25841.0,25840.0,1.668462]
[1693970677156,0.69694968,25841.0,25840.0,1.668462]
[1693970677346,0.69874968,25841.0,25840.0,1.668462]
[1693970677521,0.69616968,25841.0,25840.0,1.668462]
[1693970677729,0.69610968,25841.0,25840.0,1.668462]